Workbook

Sheet 2111
K1: ЗАТВЕРДЖЕНО Наказ Міністерства фінансів України 26 серпня 2014 року N 836 (у редакції наказу Міністерства фінансів України від 15 листопада 2018 року N 908)
A3: Звіт
A4: про виконання паспорта бюджетної програми місцевого бюджету за 2019 рік
A5: 1. | B5: 0100000 | E5: Дунаєвецька міська рада
B6: (КТПКВК МБ) | E6: (найменування головного розпорядника)
A7: 2. | B7: 0110000 | E7: Дунаєвецька міська рада
B8: (КТПКВК МБ) | E8: (найменування відповідального виконавця)
A9: 3. | B9: 0112111 | C9: 0726 | E9: Первинна медична допомога населенню, що надається центрами первинної (медико-санітарної) допомоги
B10: (КТПКВК МБ) | C10: (КФКВК) | E10: (найменування бюджетної програми)
A11: 4. | B11: Видатки (надані кредити) за бюджетною програмою:
J12: (грн)
B13: Затверджено у паспорті бюджетної програми | E13: Касові видатки (надані кредити) | H13: Відхилення
B14: загальний фонд | C14: спеціальний фонд | D14: усього | E14: загальний фонд | F14: спеціальний фонд | G14: усього | H14: загальний фонд | I14: спеціальний фонд | J14: усього
B15: 1 | C15: 2 | D15: 3 | E15: 4 | F15: 5 | G15: 6 | H15: 7 | I15: 8 | J15: 9
B16: 2447552 | C16: 271800 | D16: 2719352 | E16: 2187050 | F16: 270867 | G16: =SUM(E16+F16) -> 2457917 | H16: =E16-B16 -> -260502 | I16: =F16-C16 -> -933 | J16: -261435
A18: 5. | B18: Напрями використання бюджетних коштів:
M19: (грн)
A20: N з/п | B20: Напрями використання бюджетних коштів | E20: Затверджено у паспорті бюджетної програми | H20: Касові видатки (надані кредити) | K20: Відхилення
E21: загальний фонд | F21: спеціальний фонд | G21: усього | H21: загальний фонд | I21: спеціальний фонд | J21: усього | K21: загальний фонд | L21: спеціальний фонд | M21: усього
A22: 1 | B22: 2 | E22: 3 | F22: 4 | G22: 5 | H22: 6 | I22: 7 | J22: 8 | K22: 9 | L22: 10 | M22: 11
A23: 1 | B23: Виконання заходів програми фінансової підтримки КНП"Дунаєвецький центр ПМСД "на 2018-2019рр. | E23: 1737552 | F23: 271800 | G23: =SUM(E23+F23) -> 2009352 | H23: 1501224 | I23: 270867 | J23: =SUM(H23+I23) -> 1772091 | K23: =H23-E23 -> -236328 | L23: -933 | M23: -237261
A24: 2 | B24: Виконання заходів програми медико-соціальне забезпечення пільгових та соціально незахищених верств населення ДМР на 2018-2019рр. | E24: 710000 | G24: =SUM(E24+F24) -> 710000 | H24: 685825 | J24: =SUM(H24+I24) -> 685825 | K24: -24175 | L24: 0 | M24: -24175
A25: Усього | E25: =SUM(E23+E24) -> 2447552 | F25: 271800 | G25: 2719352 | H25: 2187049 | I25: 270867 | J25: 2457916 | K25: -260503 | L25: -933 | M25: -261436
A27: 6. | B27: Видатки (надані кредити) на реалізацію місцевих/регіональних програм, які виконуються в межах бюджетної програми:
M28: (грн)
B29: Найменування місцевої / регіональної програми | E29: Затверджено у паспорті бюджетної програми | H29: Касові видатки (надані кредити) | K29: Відхилення
E30: загальний фонд | F30: спеціальний фонд | G30: усього | H30: загальний фонд | I30: спеціальний фонд | J30: усього | K30: загальний фонд | L30: спеціальний фонд | M30: усього
B31: 1 | E31: 2 | F31: 3 | G31: 4 | H31: 5 | I31: 6 | J31: 7 | K31: 8 | L31: 9 | M31: 10
B32: Програма фінансової підтримки КНП "Дунаєвецький центр ПМСД " на 2018-2019рр. | E32: 1737552 | F32: 271800 | G32: =SUM(E32+F32) -> 2009352 | H32: 1501224 | I32: 270867 | J32: =SUM(H32+I32) -> 1772091 | K32: =H32-E32 -> -236328 | L32: -933 | M32: -237261
B33: Програма медико-соціальне забезпечення пільгових та соціально незахищених верств населення ДМР на 2018-2019рр. | E33: 710000 | G33: =SUM(E33+F33) -> 710000 | H33: 685825 | J33: =SUM(H33+I33) -> 685825 | K33: -24175 | M33: -24175
B34: Усього | E34: =SUM(E32:E33) -> 2447552 | F34: =SUM(F32:F33) -> 271800 | G34: 2719352 | H34: 2187049 | I34: 270867 | J34: 2457916 | K34: -260503 | L34: -933 | M34: -261436
B35: Пояснення щодо причин відхилення між касовими видатками (наданими кредитами) та затвердженими у паспорті бюджетної програми : зменшення видатків на виконання програми фінансової підтримки КНП за рахунок економії енергоносіїв, зниженням ціни на газ, невикористаними також залишились кошти на підтримку молодих спеціалістів; невикористані кошти по програмі медико-соціального забезпечення за рахунок зменшення кількості звернень онкохворих в грудні місяці.
A36: 7. | B36: Результативні показники бюджетної програми та аналіз їх виконання:
A38: N з/п | B38: Показники | C38: Одиниця виміру | D38: Джерело інформації | E38: Затверджено у паспорті бюджетної програми | H38: Фактичні результативні показники, досягнуті за рахунок касових видатків (наданих кредитів) | K38: Відхилення
E40: загальний фонд | F40: спеціальний фонд | G40: усього | H40: загальний фонд | I40: спеціальний фонд | J40: усього | K40: загальний фонд | L40: спеціальний фонд | M40: усього
A41: 1 | B41: 2 | C41: 3 | D41: 4 | E41: 5 | F41: 6 | G41: 7 | H41: 8 | I41: 9 | J41: 10 | K41: 11 | L41: 12 | M41: 13
A42: 1 | B42: затрат
B43: кількість підприємств, що потребує фінансової підтримки | C43: од | D43: мережа | E43: 1 | G43: 1 | H43: 1 | J43: 1
B44: кілкість штатних посад | C44: од | D44: штатний розпис | E44: 233 | F44: 0 | G44: =SUM(E44+F44) -> 233 | H44: 208 | J44: =SUM(H44+I44) -> 208 | K44: =H44-E44 -> -25 | M44: =J44-G44 -> -25
B45: в.т.ч. лікарі, які надають первинну допомогу | C45: од | D45: штатний розпис | E45: 44 | F45: 0 | G45: =SUM(E45+F45) -> 44 | H45: 37.5 | J45: =SUM(H45+I45) -> 37.5 | K45: =H45-E45 -> -6.5 | M45: -6.5
B46: видатки на забезпечення пільговими медикаментами та виробами медичного призначення | C46: тис.грн | D46: план використання бюджетних коштів | E46: 1060 | G46: =SUM(E46+F46) -> 1060 | H46: 1035.8 | J46: =SUM(H46+I46) -> 1035.8 | K46: =H46-E46 -> -24.2 | M46: -24.2
A47: Пояснення щодо причин розбіжностей: зменшення кількості штатних посад в звязку з відокремлення Смотрицької та Балинської АЗПСМ
A48: 2 | B48: продукту
B49: сума фінансової підтримки | C49: тис.грн | D49: кошторис | E49: 1737.552 | F49: 271.8 | G49: =SUM(E49+F49) -> 2009.352 | H49: 1501.224 | I49: 270.867 | J49: =SUM(H49+I49) -> 1772.091 | K49: =H49-E49 -> -236.328 | L49: -0.933 | M49: -237.261
B50: кількість пролікованих хворих | C50: тис.осіб | D50: форма№20 | E50: 73.5 | G50: =SUM(E50+F50) -> 73.5 | H50: 79.5 | J50: =SUM(H50+I50) -> 79.5 | K50: 6 | M50: 6
B51: кількість хворих, яким будуть надані пільгові медикаменти та вироби медичного призначення | C51: осіб | D51: розрахунково | E51: 12107 | G51: =SUM(E51+F51) -> 12107 | H51: 9980 | J51: =SUM(H51+I51) -> 9980 | K51: =H51-E51 -> -2127 | M51: -2127
A52: Пояснення щодо причин розбіжностей : збільшилась кількість пролікованих хворих за рахунок збільшення захворюваності та звернення до лікарів , зменшення кількості хворих, яким надано пільгові медикаменти за рахунок збільшення дороговартісних рецептів для онкохворих
A53: 3 | B53: ефективності
B54: кількість прикріпленого населення на 1 лікаря, який надає первинну допомогу | C54: од. | D54: розрахунково | E54: 1310 | G54: =SUM(E54+F54) -> 1310 | H54: 1450 | J54: =SUM(H54+I54) -> 1450 | K54: =H54-E54 -> 140 | M54: =J54-G54 -> 140
B55: середня кількість відвідувань на 1 лікаря | C55: чол | D55: розрахунково | E55: 3133 | G55: =SUM(E55+F55) -> 3133 | H55: 4500 | J55: =SUM(H55+I55) -> 4500 | K55: 1367 | M55: 1367
B56: видатки для забезпечення пільговими медикаментами та виробами медичного призначення 1 хворого | C56: грн | D56: розрахунково | E56: 87 | G56: =SUM(E56+F56) -> 87 | H56: 104 | J56: =SUM(H56+I56) -> 104 | K56: 17 | M56: 17
A57: Пояснення щодо причин розбіжностей : збільшилась кількість прикріпленого населення в звязку з збільшенням підписаних декларацій, із збільшенням звернень збільшилась і кількість пролікованих хворих, збільшились видатки для забезпечення пільговими медикаментами та виробами медпризначення одного хворого за рахунок здорожчання медикаментів та виробів
A58: 4 | B58: якості
B59: забезпечення повноти охоплення профщепленнями | C59: % | D59: статистичні дані рейтингових досліджень | E59: 86 | G59: =SUM(E59+F59) -> 86 | H59: 86 | J59: =SUM(H59+I59) -> 86 | K59: =SUM(E59-H59) -> 0 | M59: =SUM(G59-J59) -> 0
B60: динаміка виявлених візуальних форм онкозахворювань в занедбаних стадіях | C60: % | D60: статистичні дані рейтингових досліджень | E60: 6.3 | G60: =SUM(E60+F60) -> 6.3 | H60: 10.1 | J60: =SUM(H60+I60) -> 10.1 | K60: =H60-E60 -> 3.8 | M60: =J60-G60 -> 3.8
A61: Пояснення щодо причин розбіжностей :динаміка виявлених онкозахворювань зросла взвязку з збільшенням кількості профілактичних оглядів.
A62: Аналіз стану виконання результативних показників: Затверджені показники бюджетної програми фінансової підтримки КНП Дунаєвецький ЦПМСД на 201 8-2019рр. та програми медико -соціального забезпечення пільгових та соціально-незахищених верств населення ДМР в сумі 2 719 352 грн., а касові видатки становлять 2 457 916 грн. Капітальні видатки для проведення капітального ремонту та придбання обладнання використано в повному обсязі. На оплату енергоносіїв витрачено - 694,0 тис.грн., на придбання виробів медичного призначення для пільгових категорій мешканців громади (тест-смужки, калоприймачі, памперси, слухові апарати) - 349,9 тис.грн., оплату пільгових рецептів - 685, 8 тис.грн. Недовиконання касових видатків в сумі 261 436 грн. виникло за рахунок економії енергоносіїв в звязку з сприятливими погодними умовами, зменшенням ціни на газ, невикористанням коштів на підтримку першого робочого місця в селі, зменшення кількості звернень онкохворих в грудні місяці. За період 2019 року зменшилась кількість штатних одиниць в звязку з відокремленням Смотрицької та Балинської АЗПСМ і створенням Смотрицької ПМСД. За звітний період на 10% збільшилась кількість підписаних декларацій та на 43% кількість пролікованих хворих. Збільшились видатки для забезпечення пільговими медикаментами та виробами медичного призначення, в тому числі в розрахунку на одного хворого за рахунок їх здорожчання. Не змінилась повнота охоплення профщепленнями. В звязку із збільшенням профілактичних оглядів виросла кількість виявлення онкозахворювань.
A65: Міський голова | J65: В.В. Заяць
H66: (підпис) | J66: (ініціали та прізвище)
A68: Головний бухгалтер | J68: О.П. Рищенко
H69: (підпис) | J69: (ініціали та прізвище)
